fUST/lending_fUST_20240809
["ID","MTS","AMOUNT","RATE_DAILY","PERIOD"]
[334543790,1723183832594,-196.58453843,0.00015708,2]
[334543792,1723183832605,-155.1988676,0.00015708,2]
[334543794,1723183832615,-433.27733507,0.00015708,2]
[334543796,1723183832630,-42366.16356883,0.00015709,2]
[334543798,1723183832639,-154.81863612,0.0001571,2]
[334543800,1723183832649,-854.50736198,0.0001571,2]
[334543801,1723183832660,-727.95598898,0.0001571,2]
[334543802,1723183832669,-17895.50968471,0.00015712,2]
[334543803,1723183832679,-414.16414531,0.00015712,2]
[334543804,1723183832688,-205.20449904,0.00015712,2]
[334543805,1723183832699,-2123.85805989,0.00015712,2]
[334543807,1723183832709,-250.0,0.00015712,2]
[334543809,1723183832719,-8834.48131506,0.00015744,2]
[334543811,1723183832728,-303.40788492,0.00015746,2]
[334543812,1723183832738,-250.38146921,0.00015746,2]
[334543813,1723183832749,-183.21593301,0.00015746,2]
[334543814,1723183832759,-154.77557542,0.00015746,2]
[334543815,1723183832770,-1394.37542323,0.00015746,2]
[334543816,1723183832780,-180.51285937,0.00015746,2]
[334543817,1723183832790,-403.74175046,0.00015746,2]
[334543818,1723183832799,-250.0,0.00015753,2]
[334543819,1723183832809,-250.0,0.00015795,2]
[334543820,1723183832819,-19213.15361774,0.00015851,2]
[334543821,1723183832828,-1473.15704671,0.00015854,2]
[334543822,1723183832838,-151.0,0.000159,2]
[334543823,1723183832847,-18493.96990048,0.00015943,2]
[334543824,1723183832859,-1004.25000015,0.00015943,2]
[334543825,1723183833381,329.752867,0.0001443,2]
[334543884,1723183838718,-223.26161126,0.00015712,2]
[334543886,1723183838729,-1131.26872049,0.00015744,2]
[334543888,1723183838739,-154.77557542,0.00015746,2]
[334543890,1723183838748,-400.0,0.0001585,2]
[334543892,1723183838759,-162.60064966,0.0001585,2]
[334543893,1723183838769,-1923.80315267,0.00015943,2]
[334543894,1723183838778,-3432.67157867,0.00015954,2]
[334543895,1723183838788,-2833.28421105,0.00015954,2]
[334543896,1723183838797,-158.5531983,0.00015954,2]
[334543897,1723183838807,-4501.88377893,0.00015995,2]
[334543898,1723183838816,-1049.0,0.00016438,2]
[334543899,1723183838826,-269.95291788,0.00017019,2]
[334543900,1723183838836,-420.0,0.00017142,2]
[334543901,1723183838845,-17484.34150072,0.00017249,2]
[334543909,1723183840594,-2265.02738667,0.00017249,2]
[334543932,1723183841432,-1672.65416591,0.00017249,2]
[334543934,1723183841441,-35031.14789157,0.00017379,2]
[334543936,1723183841453,-35031.14789157,0.00017379,2]
[334543938,1723183841463,-150.112233,0.00018,2]
[334543940,1723183841472,-1473.15704669,0.00018113,2]
[334543942,1723183841482,-5238.43426144,0.00018125,2]
[334543943,1723183841491,-21422.0230533,0.00018336,2]
[334543944,1723183841501,-2163.84623957,0.00018346,2]
[334543945,1723183841510,-1764.53474525,0.00018346,2]
[334543946,1723183841521,-1795.64982845,0.00018489,2]
[334543947,1723183841531,-3089.42924468,0.00018557,2]
[334543948,1723183841540,-1991.65402436,0.00018557,2]
[334543949,1723183841550,-1715.84099163,0.00018557,2]
[334543950,1723183841559,-9114.71769999,0.00018557,2]
[334543951,1723183841568,-4501.88377891,0.00018573,2]
[334543952,1723183841577,-1092.14836603,0.00018679,2]
[334543953,1723183841587,-845.99366792,0.00018701,2]
[334543954,1723183841596,-932.72964545,0.00018701,2]
[334543955,1723183841605,-543.3913977,0.00018701,2]
[334543956,1723183841615,-8486.47693951,0.0001871,2]
[334543957,1723183842752,158.5531983,0.00014423,2]
[334543969,1723183843407,-2443.84952322,0.0001871,2]
[334543970,1723183843489,-52.0077182,0.0001871,2]
[334544003,1723183864583,169.5415,0.00014247,2]
[334544004,1723183865311,273.37336231,9.9e-05,2]
[334544005,1723183881295,273.37336231,9.9e-05,2]
[334544006,1723183898027,273.37336231,9.9e-05,2]
[334544010,1723183914139,273.37336231,9.9e-05,2]
[334544011,1723183922261,667.53663676,0.00012,2]
[334544012,1723183929661,273.37336231,9.9e-05,2]
[334544013,1723183937758,158.5531983,9.9e-05,2]
[334544014,1723183946110,273.37336231,9.9e-05,2]
[334544015,1723183957216,156.96415789,0.00012,2]
[334544016,1723183967992,1500.0,0.00012,2]
[334544017,1723183973275,1382.92970052,0.00012,2]
[334544018,1723183985250,158.5531983,0.00012,2]
[334544022,1723184033247,158.5531983,0.00014545,2]
[334544023,1723184072829,26865.99228931,0.0001469,2]
[334544025,1723184211773,158.5531983,0.0001469,2]
[334544030,1723184309758,229.9010636,0.00014247,2]
[334544031,1723184316462,422.504,0.0001501,2]
[334544032,1723184316762,158.06519022,0.0001469,2]
[334544034,1723184386470,24900.0,0.00014923,2]
[334544035,1723184391457,164.876434,0.00014948,2]
[334544036,1723184482357,250.0,0.0001493,2]
[334544037,1723184482611,250.0,0.00014971,2]
[334544038,1723184536873,5000.0,0.0001501,2]
[334544039,1723184553496,761.76155898,0.0001501,2]
[334544040,1723184554059,223.92837619,0.0001501,2]
[334544042,1723184611374,309.39667956,0.0001501,2]
[334544043,1723184612005,273.37336231,9.9e-05,2]
[334544045,1723184628087,273.37336231,9.9e-05,2]
[334544046,1723184644053,273.37336231,9.9e-05,2]
[334544047,1723184659777,273.37336231,9.9e-05,2]
[334544048,1723184675222,273.37336231,9.9e-05,2]
[334544049,1723184690624,273.37336231,9.9e-05,2]
[334544050,1723184706415,273.37336231,9.9e-05,2]
[334544058,1723184721533,273.37336231,9.9e-05,2]
[334544059,1723184736992,273.37336231,9.9e-05,2]
[334544060,1723184753012,273.37336231,9.9e-05,2]
[334544061,1723184755961,810.1149959,0.00012,2]
[334544062,1723184759632,356.48865902,0.00012,2]
[334544065,1723184768219,155.07603855,0.00012,2]
[334544066,1723184768371,273.37336231,9.9e-05,2]
[334544070,1723184783869,273.37336231,9.9e-05,2]
[334544072,1723184799245,273.37336231,9.9e-05,2]
[334544073,1723184812452,779.56253199,0.00014545,2]
[334544074,1723184813470,205.28735846,0.00014545,2]
[334544075,1723184815006,273.37336231,9.9e-05,2]
[334544078,1723184830761,273.37336231,9.9e-05,2]
[334544082,1723184844618,5238.43426144,0.00015,2]
[334544083,1723184846974,273.37336231,9.9e-05,2]
[334544086,1723184854173,532.14086008,9.999e-05,2]
[334544089,1723184856886,1092.14836603,0.00014999,2]
[334544090,1723184863420,273.37336231,9.9e-05,2]
[334544095,1723184872970,24900.0,0.00014468,2]
[334544096,1723184873428,543.3913977,9.999e-05,2]
[334544100,1723184878780,273.37336231,9.9e-05,2]
[334544101,1723184884844,915.45700308,9.999e-05,2]
[334544105,1723184894059,273.37336231,9.9e-05,2]
[334544107,1723184895843,284.710134,0.00014452,2]
[334544115,1723184904337,169.5415,0.00014247,2]
[334544120,1723184908114,5238.43426144,0.00015,2]
[334544123,1723184909698,1000.0,0.00012,7]
[334544124,1723184909898,273.37336231,9.9e-05,2]
[334544129,1723184915941,674.87589793,0.00012,2]
[334544130,1723184916907,359.07366133,0.00014,2]
[334544137,1723184921968,154.79103211,0.00012,2]
[334544138,1723184926118,273.37336231,9.9e-05,2]
[334544139,1723184931637,727.95598898,9.999e-05,2]
[334544140,1723184934890,403.97923523,9.999e-05,2]
[334544142,1723184939357,251.58618591,9.999e-05,2]
[334544144,1723184942013,273.37336231,9.9e-05,2]
[334544151,1723184944874,155.02088003,0.00014545,2]
[334544152,1723184946321,849.67582147,0.00014545,2]
[334544153,1723184946633,727.95598898,9.999e-05,2]
[334544155,1723184955590,-250.0,0.00015012,2]
[334544156,1723184955616,-250.0,0.00015053,2]
[334544157,1723184955643,-250.0,0.00015094,2]
[334544158,1723184955669,-250.0,0.00015135,2]
[334544159,1723184955697,-250.0,0.00015176,2]
[334544160,1723184955722,-250.0,0.00015217,2]
[334544161,1723184955747,-250.0,0.00015258,2]
[334544162,1723184955775,-250.0,0.00015299,2]
[334544163,1723184955798,-250.0,0.0001534,2]
[334544164,1723184955821,-250.0,0.00015381,2]
[334544165,1723184955846,-250.0,0.00015422,2]
[334544166,1723184955872,-250.0,0.00015463,2]
[334544167,1723184955899,-250.0,0.00015504,2]
[334544168,1723184955925,-250.0,0.00015545,2]
[334544169,1723184955948,-250.0,0.00015585,2]
[334544170,1723184955971,-103.60120936,0.0001561,2]
[334544171,1723184957492,273.37336231,9.9e-05,2]
[334544176,1723184961361,250.0,0.0001477,2]
[334544177,1723184961554,250.0,0.00014811,2]
[334544178,1723184961787,250.0,0.00014851,2]
[334544179,1723184962014,250.0,0.00014892,2]
[334544180,1723184962220,250.0,0.00014932,2]
[334544181,1723184962437,250.0,0.00014973,2]
[334544183,1723184968616,154.79103211,9.999e-05,2]
[334544184,1723184969119,1852.90694417,0.00015,2]
[334544185,1723184969942,155.13047519,0.00014545,2]
[334544187,1723184973357,403.47773514,0.00014545,2]
[334544188,1723184973396,273.37336231,9.9e-05,2]
[334544192,1723184985147,725.06001734,0.00014545,2]
[334544194,1723184988332,182.11697513,9.999e-05,2]
[334544195,1723184988684,273.37336231,9.9e-05,2]
[334544202,1723185002418,505.97823788,0.0001,2]
[334544208,1723185004528,339.00654034,9.999e-05,2]
[334544209,1723185004565,273.37336231,9.9e-05,2]
[334544210,1723185005751,155.01550852,9.999e-05,2]
[334544213,1723185008016,154.77557542,9.999e-05,2]
[334544218,1723185019922,273.37336231,9.9e-05,2]
[334544219,1723185021424,205.22796673,9.999e-05,2]
[334544221,1723185025756,180.51285937,9.999e-05,2]
[334544222,1723185026727,201.59267893,9.999e-05,2]
[334544263,1723185032830,-250.0,0.00015013,2]
[334544264,1723185032840,-250.0,0.00015054,2]
[334544265,1723185032850,-250.0,0.00015094,2]
[334544266,1723185032860,-250.0,0.00015135,2]
[334544267,1723185032869,-250.0,0.00015175,2]
[334544268,1723185032878,-250.0,0.00015216,2]
[334544269,1723185032888,-250.0,0.00015256,2]
[334544270,1723185032897,-250.0,0.00015297,2]
[334544271,1723185032908,-250.0,0.00015337,2]
[334544272,1723185032917,-250.0,0.00015378,2]
[334544273,1723185032926,-250.0,0.00015418,2]
[334544274,1723185032935,-250.0,0.00015459,2]
[334544275,1723185032945,-250.0,0.00015499,2]
[334544276,1723185032954,-250.0,0.0001554,2]
[334544277,1723185032964,-3939.14830659,0.00015608,2]
[334544278,1723185032973,-3513.76839609,0.0001561,2]
[334544279,1723185032984,-979.34866486,0.0001561,2]
[334544280,1723185032994,-191.76257474,0.00015645,2]
[334544281,1723185033006,-300.0,0.00015698,2]
[334544282,1723185033015,-300.0,0.00015698,2]
[334544283,1723185033025,-32302.9070485,0.00015699,2]
[334544284,1723185033035,-20759.5327798,0.00015708,2]
[334544285,1723185033045,-1717.1638182,0.00015708,2]
[334544286,1723185033054,-3089.42924468,0.00015708,2]
[334544287,1723185033064,-9114.71769999,0.00015708,2]
[334544288,1723185033073,-1162.86940617,0.00015708,2]
[334544289,1723185033083,-1795.64982845,0.00015708,2]
[334544290,1723185033092,-1610.90790663,0.00015708,2]
[334544291,1723185033102,-932.72964545,0.00015708,2]
[334544292,1723185033112,-35031.14789157,0.00015709,2]
[334544293,1723185033122,-414.16414531,0.0001571,2]
[334544294,1723185033131,-1764.53474525,0.0001571,2]
[334544295,1723185033141,-2163.84623957,0.0001571,2]
[334544296,1723185033150,-154.77557542,0.0001571,2]
[334544297,1723185033164,-64605.8140969,0.00015726,2]
[334544298,1723185033174,-1992.83567899,0.00015744,2]
[334544299,1723185033183,-154.79103211,0.00015751,2]
[334544300,1723185033193,-223.26161126,0.00015851,2]
[334544301,1723185033203,-181.97724403,0.00015851,2]
[334544302,1723185033212,-845.99366792,0.00016159,2]
[334544303,1723185033221,-639.10429466,0.00016159,2]
[334544304,1723185033231,-277.26634811,0.00016532,2]
[334544305,1723185033240,-471.11500661,0.00016532,2]
[334544306,1723185033251,-150.112233,0.00017,2]
[334544307,1723185033261,-32302.9070485,0.00017009,2]
[334544308,1723185033271,-155.62455679,0.00017019,2]
[334544309,1723185033281,-628.44426496,0.00017019,2]
[334544310,1723185033291,-179.45692193,0.00017019,2]
[334544311,1723185033301,-420.0,0.00017168,2]
[334544312,1723185033312,-420.0,0.00017268,2]
[334544313,1723185033321,-160.25653991,0.00017379,2]
[334544314,1723185033331,-154.77557542,0.00017379,2]
[334544315,1723185033341,-510.0216815,0.00017379,2]
[334544316,1723185033351,-174.63190084,0.00017379,2]
[334544317,1723185033362,-156.82503371,0.00017379,2]
[334544318,1723185033371,-319.90937201,0.00017379,2]
[334544319,1723185033380,-568.89588544,0.00017379,2]
[334544320,1723185033390,-156.46102106,0.00017379,2]
[334544321,1723185033400,-342.24911954,0.00017389,2]
[334544322,1723185033413,-154.85284036,0.00017389,2]
[334544323,1723185033422,-342.24911954,0.00017389,2]
[334544324,1723185033431,-156.91765496,0.00017389,2]
[334544325,1723185033441,-287.94781809,0.00017389,2]
[334544326,1723185033451,-2124.51614001,0.00017482,2]
[334544327,1723185033461,-269.43652196,0.00017555,4]
[334544328,1723185033471,-1988.8086057,0.000176,2]
[334544330,1723185033480,-165.64084866,0.0001784,2]
[334544331,1723185033490,-154.77557542,0.0001784,2]
[334544332,1723185033499,-154.77557542,0.0001784,2]
[334544333,1723185033509,-155.27302731,0.0001784,2]
[334544334,1723185033519,-154.77557542,0.00017882,2]
[334544335,1723185033528,-240.94479863,0.00017882,2]
[334544336,1723185033537,-3617.36960544,0.00017933,2]
[334544337,1723185033547,-3939.14830654,0.00018108,2]
[334544339,1723185033556,-188.34866886,0.00018302,2]
[334544340,1723185033566,-601.1945502,0.00018302,2]
[334544341,1723185033575,-154.77557542,0.00018302,2]
[334544342,1723185033586,-159.33909934,0.00018302,2]
[334544343,1723185033596,-154.77557542,0.00018316,2]
[334544344,1723185033606,-209.31521257,0.00018356,2]
[334544345,1723185033616,-2140.4177363,0.00018356,2]
[334544346,1723185033625,-5319.62208705,0.00018459,2]
[334544347,1723185033635,-194.83432597,0.00018701,2]
[334544348,1723185033644,-587.0,0.00018777,2]
[334544349,1723185033655,-1000.0,0.0001896,2]
[334544350,1723185033667,-587.0,0.00018995,2]
[334544351,1723185033676,-9648.27796999,0.00018999,2]
[334544352,1723185033686,-156.22037641,0.00019,2]
[334544353,1723185033696,-250.0,0.00019041,2]
[334544354,1723185033707,-2025.48321327,0.00019167,8]
[334544355,1723185033717,-2000.0,0.00019178,2]
[334544356,1723185033728,-2000.0,0.00019178,2]
[334544357,1723185033739,-171.856022,0.00019178,2]
[334544358,1723185033748,-150.112233,0.000192,2]
[334544359,1723185033758,-32302.9070485,0.0001999,2]
[334544360,1723185033768,-426.99038561,0.0002,2]
[334544361,1723185033779,-1444.60456197,0.0002,2]
[334544362,1723185033789,-154.77557542,0.0002,2]
[334544363,1723185033798,-1364.15976013,0.0002,2]
[334544364,1723185033807,-156.40122441,0.0002,2]
[334544365,1723185033817,-294.28393168,0.0002,2]
[334544366,1723185033827,-150.112233,0.0002,2]
[334544367,1723185033836,-155.10010725,0.0002,2]
[334544368,1723185033846,-435.0,0.0002,2]
[334544369,1723185033856,-154.77557542,0.0002,2]
[334544370,1723185033865,-154.80648964,0.0002,2]
[334544371,1723185033874,-171.86048498,0.0002,2]
[334544372,1723185033883,-3617.36960544,0.00020255,2]
[334544373,1723185033893,-301.1738371,0.0002028,2]
[334544374,1723185033903,-823.0,0.00020535,2]
[334544375,1723185033917,-3939.14830654,0.00020607,2]
[334544376,1723185033927,-823.0,0.00020894,2]
[334544377,1723185033937,-163.905472,0.0002099,2]
[334544378,1723185033947,-151.273612,0.0002099,2]
[334544379,1723185033957,-32302.9070485,0.0002099,3]
[334544380,1723185033966,-245.35041982,0.00020999,2]
[334544381,1723185033975,-245.35041982,0.00020999,2]
[334544382,1723185033985,-10000.0,0.00021,21]
[334544383,1723185033995,-296.95255486,0.00021,2]
[334544384,1723185034005,-151.0,0.00021,2]
[334544385,1723185034015,-151.0,0.00021,2]
[334544386,1723185034025,-151.0,0.00021,2]
[334544387,1723185034035,-494.53502099,0.00021048,2]
[334544388,1723185034044,-153.0,0.00021061,2]
[334544389,1723185034053,-153.0,0.00021061,2]
[334544390,1723185034063,-150.112233,0.000214,4]
[334544391,1723185034073,-157.85964427,0.0002142,2]
[334544392,1723185034082,-302.37741321,0.00021589,2]
[334544393,1723185034092,-284.710134,0.00021678,2]
[334544394,1723185034101,-151.0,0.00021898,2]
[334544395,1723185034110,-151.0,0.00021898,2]
[334544396,1723185034120,-395.963964,0.00021898,2]
[334544397,1723185034129,-395.963964,0.00021898,2]
[334544398,1723185034138,-151.0,0.00021898,2]
[334544399,1723185034148,-309.350365,0.00021906,2]
[334544400,1723185034158,-32302.9070485,0.00021908,3]
[334544401,1723185034167,-2000.0,0.00021918,5]
[334544402,1723185034176,-1000.0,0.00021918,5]
[334544403,1723185034186,-1000.0,0.00021918,2]
[334544404,1723185034195,-1000.0,0.00021918,2]
[334544405,1723185034205,-151.0,0.00021918,2]
[334544406,1723185034215,-151.0,0.00021918,7]
[334544407,1723185034224,-208.82481,0.00021918,7]
[334544408,1723185034233,-151.0,0.00021918,7]
[334544409,1723185034243,-151.0,0.00021918,7]
[334544410,1723185034252,-150.112233,0.00022,3]
[334544411,1723185034261,-151.0,0.00022,7]
[334544412,1723185034270,-151.0,0.00022,7]
[334544413,1723185034279,-170.524936,0.00022061,7]
[334544414,1723185034289,-170.524936,0.00022061,7]
[334544415,1723185034298,-546.61963,0.00022061,7]
[334544416,1723185034308,-546.61963,0.00022061,7]
[334544417,1723185034318,-761.522647,0.00022061,7]
[334544418,1723185034328,-761.522647,0.00022061,7]
[334544419,1723185034337,-1417.882806,0.00022061,7]
[334544420,1723185034346,-1417.882806,0.00022061,7]
[334544421,1723185034356,-448.428517,0.00022061,7]
[334544422,1723185034365,-152.089884,0.00022061,7]
[334544423,1723185034374,-225.58637412,0.00022061,2]
[334544424,1723185034383,-500.0,0.00022061,2]
[334544425,1723185034393,-500.0,0.00022061,2]
[334544426,1723185034403,-500.0,0.00022061,2]
[334544427,1723185034418,-600.0,0.00022061,2]
[334544428,1723185034428,-500.0,0.00022061,2]
[334544429,1723185034438,-500.0,0.00022061,2]
[334544430,1723185034448,-500.0,0.00022061,2]
[334544431,1723185034457,-500.0,0.00022061,2]
[334544432,1723185034468,-500.0,0.00022061,2]
[334544433,1723185034478,-500.0,0.00022061,2]
[334544434,1723185034487,-500.0,0.00022061,2]
[334544435,1723185034497,-600.0,0.00022061,2]
[334544436,1723185034506,-32302.9070485,0.00022062,3]
[334544437,1723185034516,-153.0,0.00022073,2]
[334544438,1723185034526,-153.0,0.00022073,2]
[334544439,1723185034535,-153.0,0.00022073,2]
[334544440,1723185034545,-153.0,0.00022073,2]
[334544441,1723185034554,-153.0,0.00022073,2]
[334544442,1723185034563,-153.0,0.00022073,2]
[334544443,1723185034573,-153.0,0.00022073,2]
[334544444,1723185034583,-153.0,0.00022073,2]
[334544445,1723185034592,-153.0,0.00022092,2]
[334544446,1723185034601,-153.0,0.00022092,2]
[334544447,1723185034611,-154.72922286,0.000223,2]
[334544448,1723185034620,-3617.36960544,0.00022578,2]
[334544449,1723185034629,-200.0,0.00022856,2]
[334544450,1723185034639,-621.01675614,0.0002296,2]
[334544451,1723185034649,-1152.0,0.00022984,2]
[334544452,1723185034661,-1000.0,0.00023,23]
[334544453,1723185034671,-151.0,0.00023,7]
[334544454,1723185034681,-508.89205,0.00023,7]
[334544455,1723185034691,-508.89205,0.00023,7]
[334544456,1723185034705,-151.0,0.00023,7]
[334544457,1723185034715,-160.886104,0.00023,7]
[334544458,1723185034724,-160.886104,0.00023,7]
[334544459,1723185034734,-151.0,0.00023,7]
[334544460,1723185034743,-151.0,0.00023,2]
[334544461,1723185034752,-151.0,0.00023,2]
[334544462,1723185034762,-3939.14830654,0.00023107,2]
[334544463,1723185034772,-201.0906367,0.00023533,2]
[334544464,1723185034783,-432.1796011,0.00023562,2]
[334544465,1723185034792,-150.112233,0.000236,2]
[334544466,1723185034803,-4351.71715984,0.00024,30]
[334544467,1723185034812,-150.112233,0.00024,5]
[334544468,1723185034822,-620.05083781,0.00024108,2]
[334544469,1723185034831,-153.0,0.0002411,2]
[334544470,1723185034840,-153.0,0.0002411,2]
[334544471,1723185034850,-588.9900359,0.0002411,2]
[334544472,1723185034859,-153.0,0.0002411,2]
[334544473,1723185034870,-294.5666805,0.0002411,2]
[334544474,1723185034879,-294.5666805,0.0002411,2]
[334544475,1723185034889,-294.5666805,0.0002411,2]
[334544476,1723185034899,-294.5666805,0.0002411,2]
[334544477,1723185034908,-294.5666805,0.0002411,2]
[334544478,1723185034917,-294.5666805,0.0002411,2]
[334544479,1723185034927,-294.5666805,0.0002411,2]
[334544480,1723185034937,-400.0,0.00024225,2]
[334544481,1723185034947,-151.0,0.00024478,7]
[334544482,1723185034956,-151.0,0.00024478,7]
[334544483,1723185034966,-151.0,0.00024478,7]
[334544484,1723185034975,-151.0,0.00024478,7]
[334544485,1723185034985,-151.0,0.00024478,7]
[334544486,1723185034994,-151.0,0.00024478,7]
[334544487,1723185035004,-151.0,0.00024478,7]
[334544488,1723185035014,-151.0,0.00024478,7]
[334544490,1723185035023,-158.349676,0.00024478,7]
[334544491,1723185035032,-544.198687,0.00024478,7]
[334544492,1723185035042,-544.198687,0.00024478,7]
[334544493,1723185035052,-472.555066,0.00024478,7]
[334544494,1723185035061,-472.555066,0.00024478,7]
[334544495,1723185035070,-151.0,0.00024478,7]
[334544496,1723185035080,-151.0,0.00024478,7]
[334544497,1723185035089,-151.0,0.00024488,7]
[334544498,1723185035098,-151.0,0.00024488,7]
[334544499,1723185035107,-151.0,0.00024488,7]
[334544500,1723185035116,-151.0,0.00024488,7]
[334544501,1723185035127,-151.0,0.00024488,7]
[334544502,1723185035136,-151.0,0.00024488,7]
[334544503,1723185035145,-581.334084,0.00024488,7]
[334544504,1723185035154,-581.334084,0.00024488,7]
[334544505,1723185035164,-814.838285,0.00024488,7]
[334544506,1723185035174,-814.838285,0.00024488,7]
[334544507,1723185035183,-525.828866,0.00024488,7]
[334544508,1723185035192,-525.828866,0.00024488,7]
[334544509,1723185035202,-152.761347,0.00024489,7]
[334544510,1723185035211,-508.89205,0.00024489,7]
[334544511,1723185035220,-6.51485777,0.00024489,7]
[334544520,1723185039046,-154.77557542,0.00018302,2]
[334544521,1723185039057,-42366.16356883,0.00021906,2]
[334544522,1723185039066,-234.66950048,0.0002206,2]
[334544523,1723185039076,-390.62201657,0.0002206,2]
[334544524,1723185039255,-500.0,0.0002206,2]
[334544525,1723185039265,-500.0,0.0002206,2]
[334544526,1723185039275,-500.0,0.0002206,2]
[334544527,1723185039285,-500.0,0.0002206,2]
[334544528,1723185039294,-500.0,0.0002206,2]
[334544529,1723185039304,-500.0,0.0002206,2]
[334544530,1723185039313,-500.0,0.0002206,2]
[334544531,1723185039323,-500.0,0.0002206,2]
[334544532,1723185039333,-500.0,0.0002206,2]
[334544533,1723185039342,-500.0,0.0002206,2]
[334544534,1723185039352,-500.0,0.0002206,2]
[334544535,1723185039361,-500.0,0.0002206,2]
[334544536,1723185039371,-448.428517,0.00022061,7]
[334544537,1723185039380,-44369.84120698,0.00022061,11]
[334544538,1723185039390,-507.0,0.00023891,2]
[334544539,1723185039400,-502.37719223,0.00024489,7]
[334544540,1723185039409,-151.0,0.00024489,7]
[334544541,1723185039420,-160.886104,0.00024489,7]
[334544542,1723185039430,-160.886104,0.00024489,7]
[334544543,1723185039440,-151.0,0.00024489,7]
[334544544,1723185039449,-151.0,0.00024489,2]
[334544545,1723185039459,-151.0,0.00024489,2]
[334544546,1723185039468,-151.0,0.0002449,7]
[334544547,1723185039477,-151.0,0.0002449,7]
[334544548,1723185039486,-151.0,0.0002449,7]
[334544549,1723185039496,-18861.55381406,0.00024498,2]
[334544550,1723185039664,-3044.35,0.00024498,2]
[334544580,1723185040859,-36775.13551444,0.00024498,2]
[334544582,1723185040870,-151.0,0.00024498,7]
[334544584,1723185040880,-151.0,0.00024498,7]
[334544586,1723185040889,-151.0,0.00024498,7]
[334544588,1723185040898,-151.0,0.00024498,7]
[334544590,1723185040907,-151.0,0.00024498,7]
[334544592,1723185040918,-151.0,0.00024498,7]
[334544594,1723185040928,-395.963964,0.00024498,7]
[334544596,1723185040937,-395.963964,0.00024498,7]
[334544598,1723185040946,-151.0,0.00024498,7]
[334544601,1723185040956,-263.368071,0.00024498,2]
[334544603,1723185040965,-151.0,0.00024498,7]
[334544605,1723185040975,-151.0,0.00024498,7]
[334544606,1723185040985,-152.069158,0.00024498,7]
[334544608,1723185040994,-151.0,0.00024498,7]
[334544610,1723185041005,-151.0,0.00024498,7]
[334544612,1723185041014,-151.0,0.00024498,7]
[334544614,1723185041023,-151.0,0.00024498,7]
[334544616,1723185041033,-151.0,0.00024498,7]
[334544618,1723185041042,-544.198687,0.00024498,7]
[334544620,1723185041053,-544.198687,0.00024498,7]
[334544622,1723185041062,-472.555066,0.00024498,7]
[334544624,1723185041071,-472.555066,0.00024498,7]
[334544626,1723185041081,-151.0,0.00024498,7]
[334544628,1723185041090,-151.0,0.00024498,7]
[334544630,1723185041099,-170.524936,0.00024498,7]
[334544632,1723185041108,-170.524936,0.00024498,7]
[334544634,1723185041118,-546.61963,0.00024498,7]
[334544636,1723185041127,-546.61963,0.00024498,7]
[334544638,1723185041137,-761.522647,0.00024498,7]
[334544640,1723185041146,-761.522647,0.00024498,7]
[334544642,1723185041156,-1417.882806,0.00024498,7]
[334544644,1723185041167,-1417.882806,0.00024498,7]
[334544646,1723185041177,-448.428517,0.00024498,7]
[334544648,1723185041186,-448.428517,0.00024498,7]
[334544650,1723185041195,-513.69,0.000245,14]
[334544652,1723185041205,-211.01,0.000245,7]
[334544654,1723185041215,-5803.64,0.000245,14]
[334544656,1723185041224,-153.2887669,0.00024795,2]
[334544658,1723185041233,-267.8162636,0.00024795,2]
[334544660,1723185041242,-153.0,0.00024795,2]
[334544662,1723185041251,-267.8162636,0.00024795,2]
[334544664,1723185041262,-306.3090632,0.00024795,2]
[334544666,1723185041271,-267.8162636,0.00024795,2]